[Event "FIDE Womens World Cup 2021"]
[Site "Sochi"]
[Date "2021.07.15"]
[Round "2.1"]
[White "Peng, Zhaoqin"]
[Black "Dzagnidze, Nana"]
[Result "0-1"]
[ECO "A28"]
[WhiteElo "2358"]
[BlackElo "2523"]
[Annotator "ChessBase"]
[PlyCount "84"]
[EventDate "2021.07.12"]
[EventType "k.o."]
[EventCountry "RUS"]
[SourceTitle "playchess.com"]
[Source "ChessBase"]
[SourceQuality "1"]
[TimeControl "40/5400+30:1800+30"]

1. c4 {[%emt 0:00:04]} Nf6 {[%emt 0:00:17]} 2. Nc3 {[%emt 0:00:11]} e5 {[%emt 0:01:29]} 3. Nf3 {[%emt 0:00:31]} Nc6 {[%emt 0:00:13]} 4. e3 {[%emt 0:00:34]} Be7 {[%emt 0:05:04]} 5. d4 {[%emt 0:02:17]} exd4 {[%emt 0:00:08]} 6. exd4 {[%emt 0:00:52]} d5 {[%emt 0:00:11]} 7. cxd5 {[%emt 0:10:19]} Nxd5 {[%emt 0:02:26]} 8. Bc4 {[%emt 0:00:12]} Nb6 {[%emt 0:00:38]} 9. Bb5 {[%emt 0:02:15]} O-O {[%emt 0:00:35]} 10. h3 {[%emt 0:10:54]} Bf5 {[%emt 0:03:12]} 11. O-O {[%emt 0:05:36]} Nb4 {[%emt 0:07:56]} 12. Bf4 {[%emt 0:01:21]} c6 {[%emt 0:01:51]} 13. Be2 {[%emt 0:00:09]} Re8 {[%emt 0:00:18]} 14. Qd2 {[%emt 0:12:54]} Bd6 {[%emt 0:08:12]} 15. Rad1 {[%emt 0:06:00]} N4d5 {[%emt 0:19:51]} 16. Bxd6 {[%emt 0:05:50]} Qxd6 {[%emt 0:00:08]} 17. Ne5 {[%emt 0:04:42]} Rad8 {[%emt 0:03:34]} 18. Rfe1 {[%emt 0:07:14]} f6 {[%emt 0:05:37]} 19. Nc4 {[%emt 0:04:30]} Qf4 {[%emt 0:01:44]} 20. Na5 {[%emt 0:06:24]} Qxd2 {[%emt 0:02:08]} 21. Rxd2 {[%emt 0:00:02]} Rd7 {[%emt 0:07:19]} 22. Rc1 {[%emt 0:03:27]} Nf4 {[%emt 0:01:45]} 23. Bf1 {[%emt 0:01:38]} g5 {[%emt 0:03:32]} 24. g3 {[%emt 0:04:48]} Nxh3+ {[%emt 0:03:16]} 25. Kh2 {[%emt 0:00:04]} g4 {[%emt 0:00:07]} 26. Bxh3 {[%emt 0:03:05]} gxh3 {[%emt 0:00:02]} 27. g4 {[%emt 0:00:14]} Bxg4 {[%emt 0:01:28]} 28. Rg1 {[%emt 0:00:38]} Rg7 {[%emt 0:01:40]} 29. Nxb7 {[%emt 0:00:19]} Nc4 {[%emt 0:03:24]} 30. Rd3 {[%emt 0:01:51]} h5 {[%emt 0:04:48]} 31. b3 {[%emt 0:01:21]} Rxb7 {[%emt 0:00:10]} 32. bxc4 {[%emt 0:01:15]} Rb2 {[%emt 0:00:14]} 33. Kg3 {[%emt 0:00:55]} Kf7 {[%emt 0:00:18]} 34. Rh1 {[%emt 0:02:48]} Rg8 {[%emt 0:01:05]} 35. Re3 {[%emt 0:01:10]} Be6+ {[%emt 0:09:50]} 36. Kf3 {[%emt 0:00:39]} Bxc4 {[%emt 0:00:52]} 37. Rxh3 {[%emt 0:00:21]} Be6 {[%emt 0:00:06]} 38. Rh2 {[%emt 0:00:23]} Rd2 {[%emt 0:00:30]} 39. Ke4 {[%emt 0:01:20]} Rg4+ {[%emt 0:01:08]} 40. Kf3 {[%emt 0:00:07]} Rgxd4 {[%emt 0:00:44]} 41. a3 {[%emt 0:30:54]} Bg4+ {[%emt 0:31:30]} 42. Kg3 {[%emt 0:00:30]} f5 {[%emt 0:01:28]} 0-1

[Event "FIDE Womens World Cup 2021"]
[Site "Sochi"]
[Date "2021.07.16"]
[Round "2.2"]
[White "Tan, Zhongyi"]
[Black "Yildiz Kadioglu, Betul Cemre"]
[Result "1-0"]
[ECO "D31"]
[WhiteElo "2511"]
[BlackElo "2362"]
[Annotator "ChessBase"]
[PlyCount "133"]
[EventDate "2021.07.12"]
[EventType "k.o."]
[EventCountry "RUS"]
[SourceTitle "playchess.com"]
[Source "ChessBase"]
[SourceQuality "1"]
[TimeControl "40/5400+30:1800+30"]

1. d4 {[%emt 0:00:04]} d5 {[%emt 0:00:18]} 2. c4 {[%emt 0:00:07]} e6 {[%emt 0:00:18]} 3. Nc3 {[%emt 0:00:05]} a6 {[%emt 0:00:09]} 4. cxd5 {[%emt 0:01:33]} exd5 {[%emt 0:00:06]} 5. Qb3 {[%emt 0:00:05]} c5 {[%emt 0:00:18]} 6. Nxd5 {[%emt 0:04:53]} Nc6 {[%emt 0:05:54]} 7. Bg5 {[%emt 0:05:22]} Nge7 {[%emt 0:05:13]} 8. Nb6 {[%emt 0:30:47]} c4 {[%emt 0:03:08]} 9. Nxc4 {[%emt 0:03:49]} b5 {[%emt 0:02:26]} 10. Nd2 {[%emt 0:10:12]} Nxd4 {[%emt 0:15:38]} 11. Qd3 {[%emt 0:00:06]} Bf5 {[%emt 0:03:50]} 12. e4 {[%emt 0:00:04]} Rc8 {[%emt 0:01:28]} 13. Kd1 {[%emt 0:00:07]} Bg6 {[%emt 0:05:36]} 14. f3 {[%emt 0:07:10]} f6 {[%emt 0:06:46]} 15. Be3 {[%emt 0:01:40]} Nc2 {[%emt 0:05:47]} 16. Qxd8+ {[%emt 0:00:46]} Kxd8 {[%emt 0:00:04]} 17. Bb6+ {[%emt 0:00:04]} Kd7 {[%emt 0:00:42]} 18. Rc1 {[%emt 0:00:07]} Nb4 {[%emt 0:07:16]} 19. a3 {[%emt 0:00:19]} Rxc1+ {[%emt 0:03:26]} 20. Kxc1 {[%emt 0:00:05]} Nc8 {[%emt 0:01:41]} 21. Be3 {[%emt 0:00:31]} Nc6 {[%emt 0:01:56]} 22. Ne2 {[%emt 0:01:03]} Bd6 {[%emt 0:04:50]} 23. Nc3 {[%emt 0:01:30]} N8e7 {[%emt 0:02:16]} 24. a4 {[%emt 0:01:28]} b4 {[%emt 0:08:02]} 25. Ncb1 {[%emt 0:00:05]} Nb8 {[%emt 0:01:42]} 26. Nc4 {[%emt 0:01:06]} Rc8 {[%emt 0:04:23]} 27. Be2 {[%emt 0:00:12]} Ke8 {[%emt 0:02:52]} 28. b3 {[%emt 0:00:33]} Bc7 {[%emt 0:06:19]} 29. Kb2 {[%emt 0:01:02]} Nec6 {[%emt 0:00:27]} 30. Nbd2 {[%emt 0:01:03]} Rd8 {[%emt 0:01:44]} 31. f4 {[%emt 0:11:54]} Nd4 {[%emt 0:00:10]} 32. Bd1 {[%emt 0:00:30]} Nbc6 {[%emt 0:00:49]} 33. h4 {[%emt 0:00:32]} Bf7 {[%emt 0:00:38]} 34. h5 {[%emt 0:00:17]} Ne6 {[%emt 0:00:40]} 35. h6 {[%emt 0:02:29]} g6 {[%emt 0:00:32]} 36. g3 {[%emt 0:00:31]} Ncd4 {[%emt 0:00:08]} 37. Nf3 {[%emt 0:04:17]} Nxf3 {[%emt 0:00:51]} 38. Bxf3 {[%emt 0:00:06]} g5 {[%emt 0:00:33]} 39. e5 {[%emt 0:01:46]} gxf4 {[%emt 0:00:22]} 40. gxf4 {[%emt 0:00:16]} fxe5 {[%emt 0:00:19]} 41. fxe5 {[%emt 0:34:51]} Bg6 {[%emt 0:30:50]} 42. a5 {[%emt 0:03:53]} Bd3 {[%emt 0:00:00]} 43. Nd6+ {[%emt 0:00:00]} Bxd6 {[%emt 0:00:00]} 44. exd6 {[%emt 0:00:00]} Rxd6 {[%emt 0:00:00]} 45. Rh4 {[%emt 0:00:00]} Bg6 {[%emt 0:00:00]} 46. Rxb4 {[%emt 0:00:00]} Rd3 {[%emt 0:00:00]} 47. Bc6+ {[%emt 0:00:00]} Ke7 {[%emt 0:00:00]} 48. Ba7 {[%emt 0:00:00]} Rh3 {[%emt 0:00:00]} 49. Rb7+ {[%emt 0:00:00]} Kf6 {[%emt 0:02:02]} 50. Rb6 {[%emt 0:00:00]} Bf7 {[%emt 0:02:20]} 51. Bd5 {[%emt 0:00:00]} Rh5 {[%emt 0:00:35]} 52. Rd6 {[%emt 0:01:29]} Ke7 {[%emt 0:00:05]} 53. Bb8 {[%emt 0:00:15]} Nc5 {[%emt 0:00:57]} 54. Bxf7 {[%emt 0:01:19]} Kxf7 {[%emt 0:00:03]} 55. Rc6 {[%emt 0:01:21]} Nd3+ {[%emt 0:00:52]} 56. Kc3 {[%emt 0:00:25]} Rh3 {[%emt 0:00:35]} 57. Kd4 {[%emt 0:01:34]} Ne1 {[%emt 0:00:31]} 58. Rxa6 {[%emt 0:02:09]} Rxb3 {[%emt 0:00:08]} 59. Rb6 {[%emt 0:00:04]} Nc2+ {[%emt 0:00:49]} 60. Kc4 {[%emt 0:01:19]} Ra3 {[%emt 0:00:02]} 61. a6 {[%emt 0:00:11]} Ne3+ {[%emt 0:00:13]} 62. Kc5 {[%emt 0:00:22]} Rc3+ {[%emt 0:01:06]} 63. Kd4 {[%emt 0:00:15]} Ra3 {[%emt 0:00:02]} 64. a7 {[%emt 0:00:11]} Nf5+ {[%emt 0:00:13]} 65. Kc5 {[%emt 0:00:46]} Ne7 {[%emt 0:00:18]} 66. Rb7 {[%emt 0:01:35]} Ke6 {[%emt 0:01:26]} 67. Kb5 {[%emt 0:01:15]} 1-0

[Event "FIDE Womens World Cup 2021"]
[Site "Sochi"]
[Date "2021.07.16"]
[Round "2.2"]
[White "Abdumalik, Zhansaya"]
[Black "Assaubayeva, Bibisara"]
[Result "1-0"]
[ECO "B23"]
[WhiteElo "2505"]
[BlackElo "2389"]
[Annotator "ChessBase"]
[PlyCount "107"]
[EventDate "2021.07.12"]
[EventType "k.o."]
[EventCountry "RUS"]
[SourceTitle "playchess.com"]
[Source "ChessBase"]
[SourceQuality "1"]
[TimeControl "40/5400+30:1800+30"]

1. e4 {[%emt 0:00:03]} c5 {[%emt 0:00:08]} 2. Nc3 {[%emt 0:00:06]} d6 {[%emt 0:00:12]} 3. d4 {[%emt 0:00:07]} cxd4 {[%emt 0:00:07]} 4. Qxd4 {[%emt 0:00:06]} Nc6 {[%emt 0:00:07]} 5. Qd2 {[%emt 0:00:07]} g6 {[%emt 0:00:06]} 6. b3 {[%emt 0:00:13]} Bh6 {[%emt 0:00:07]} 7. f4 {[%emt 0:00:05]} f5 {[%emt 0:00:07]} 8. Bb2 {[%emt 0:00:43]} Nf6 {[%emt 0:00:07]} 9. Bd3 {[%emt 0:00:09]} Qa5 {[%emt 0:00:06]} 10. exf5 {[%emt 0:01:37]} Bxf5 {[%emt 0:00:26]} 11. Nge2 {[%emt 0:00:57]} O-O-O {[%emt 0:00:23]} 12. O-O-O {[%emt 0:01:27]} Rhe8 {[%emt 0:04:16]} 13. Kb1 {[%emt 0:06:27]} e5 {[%emt 0:05:46]} 14. Bxf5+ {[%emt 0:08:05]} gxf5 {[%emt 0:03:37]} 15. Qd3 {[%emt 0:02:12]} exf4 {[%emt 0:08:32]} 16. Qh3 {[%emt 0:11:49]} Bg5 {[%emt 0:07:37]} 17. Rhf1 {[%emt 0:08:40]} Re3 {[%emt 0:05:51]} 18. Rf3 {[%emt 0:00:16]} Rde8 {[%emt 0:03:05]} 19. Nc1 {[%emt 0:02:15]} Kb8 {[%emt 0:13:40]} 20. Rxd6 {[%emt 0:07:00]} Qc5 {[%emt 0:01:32]} 21. Rd3 {[%emt 0:11:31]} Nd4 {[%emt 0:07:20]} 22. b4 {[%emt 0:03:52]} Rxf3 {[%emt 0:01:36]} 23. gxf3 {[%emt 0:01:53]} Qxb4 {[%emt 0:03:20]} 24. a3 {[%emt 0:06:52]} Qc4 {[%emt 0:03:22]} 25. Rxd4 {[%emt 0:03:00]} Qxd4 {[%emt 0:00:10]} 26. Ne4 {[%emt 0:00:04]} Qg1 {[%emt 0:12:54]} 27. Nxf6 {[%emt 0:00:16]} Bxf6 {[%emt 0:01:17]} 28. Bxf6 {[%emt 0:00:05]} Qe3 {[%emt 0:07:08]} 29. Bb2 {[%emt 0:02:22]} a6 {[%emt 0:01:49]} 30. Qh5 {[%emt 0:01:25]} Rd8 {[%emt 0:00:45]} 31. h4 {[%emt 0:02:48]} Ka8 {[%emt 0:05:21]} 32. Qg5 {[%emt 0:05:01]} Re8 {[%emt 0:00:56]} 33. Qg2 {[%emt 0:00:29]} Qe1 {[%emt 0:00:09]} 34. Qg5 {[%emt 0:01:39]} Qe3 {[%emt 0:00:48]} 35. Qh5 {[%emt 0:01:37]} Rd8 {[%emt 0:00:08]} 36. Nb3 {[%emt 0:02:24]} Qg1+ {[%emt 0:03:17]} 37. Bc1 {[%emt 0:02:16]} Qd1 {[%emt 0:01:15]} 38. Qxh7 {[%emt 0:01:13]} Qxf3 {[%emt 0:00:25]} 39. Qxf5 {[%emt 0:00:06]} Qh1 {[%emt 0:01:17]} 40. Qf6 {[%emt 0:03:06]} Rc8 {[%emt 0:00:10]} 41. Nd4 {[%emt 0:35:27]} Qd1 {[%emt 0:07:18]} 42. Qxf4 {[%emt 0:00:00]} Rc4 {[%emt 0:03:29]} 43. Qf8+ {[%emt 0:00:00]} Ka7 {[%emt 0:00:01]} 44. Qf2 {[%emt 0:00:00]} Ka8 {[%emt 0:00:27]} 45. Nb3 {[%emt 0:00:00]} Qh1 {[%emt 0:01:56]} 46. h5 {[%emt 0:00:00]} Rc8 {[%emt 0:06:20]} 47. h6 {[%emt 0:00:00]} Qe4 {[%emt 0:00:09]} 48. Qd2 {[%emt 0:00:00]} Qh4 {[%emt 0:01:18]} 49. Qd3 {[%emt 0:00:00]} Rd8 {[%emt 0:00:10]} 50. Qf5 {[%emt 0:00:00]} Qh1 {[%emt 0:00:17]} 51. Kb2 {[%emt 0:00:00]} Re8 {[%emt 0:00:44]} 52. Qg6 {[%emt 0:00:00]} Rc8 {[%emt 0:00:28]} 53. Be3 {[%emt 0:00:00]} Qh2 {[%emt 0:02:16]} 54. Bd4 {[%emt 0:00:00]} 1-0

[Event "FIDE Womens World Cup 2021"]
[Site "Sochi"]
[Date "2021.07.16"]
[Round "2.2"]
[White "Kashlinskaya, Alina"]
[Black "Ordaz Valdes, Lisandra Teresa"]
[Result "1-0"]
[ECO "D31"]
[WhiteElo "2488"]
[BlackElo "2369"]
[Annotator "ChessBase"]
[PlyCount "103"]
[EventDate "2021.07.12"]
[EventType "k.o."]
[EventCountry "RUS"]
[SourceTitle "playchess.com"]
[Source "ChessBase"]
[SourceQuality "1"]
[TimeControl "40/5400+30:1800+30"]

1. d4 {[%emt 0:00:03]} d5 {[%emt 0:00:08]} 2. c4 {[%emt 0:00:06]} e6 {[%emt 0:00:06]} 3. Nc3 {[%emt 0:00:10]} a6 {[%emt 0:00:08]} 4. cxd5 {[%emt 0:00:11]} exd5 {[%emt 0:00:06]} 5. Qb3 {[%emt 0:00:14]} Nf6 {[%emt 0:10:12]} 6. Bg5 {[%emt 0:00:30]} c6 {[%emt 0:00:26]} 7. e4 {[%emt 0:00:43]} Be7 {[%emt 0:11:29]} 8. e5 {[%emt 0:00:34]} Ne4 {[%emt 0:01:15]} 9. Bxe7 {[%emt 0:00:36]} Qxe7 {[%emt 0:00:02]} 10. g3 {[%emt 0:06:24]} O-O {[%emt 0:04:57]} 11. Bg2 {[%emt 0:03:45]} Be6 {[%emt 0:01:19]} 12. Nge2 {[%emt 0:04:33]} Nxc3 {[%emt 0:10:15]} 13. Nxc3 {[%emt 0:13:31]} c5 {[%emt 0:09:58]} 14. Nxd5 {[%emt 0:11:49]} Bxd5 {[%emt 0:05:24]} 15. Qxd5 {[%emt 0:01:59]} cxd4 {[%emt 0:00:38]} 16. Qxb7 {[%emt 0:05:00]} Nd7 {[%emt 0:10:42]} 17. O-O {[%emt 0:01:22]} Rab8 {[%emt 0:01:35]} 18. Qxa6 {[%emt 0:16:22]} Rxb2 {[%emt 0:03:58]} 19. Qa7 {[%emt 0:00:36]} Qe6 {[%emt 0:13:33]} 20. Qxd4 {[%emt 0:00:49]} Rfb8 {[%emt 0:00:06]} 21. Rad1 {[%emt 0:03:00]} Nf8 {[%emt 0:00:17]} 22. Bd5 {[%emt 0:01:34]} Qf5 {[%emt 0:00:22]} 23. Bb3 {[%emt 0:04:41]} R2xb3 {[%emt 0:02:30]} 24. axb3 {[%emt 0:00:06]} Rxb3 {[%emt 0:00:08]} 25. Qc5 {[%emt 0:04:04]} Rb8 {[%emt 0:01:14]} 26. Qc7 {[%emt 0:04:22]} Rc8 {[%emt 0:01:49]} 27. Qe7 {[%emt 0:00:18]} Ne6 {[%emt 0:01:17]} 28. Qd7 {[%emt 0:03:14]} Rf8 {[%emt 0:00:23]} 29. Rfe1 {[%emt 0:00:17]} h5 {[%emt 0:00:07]} 30. Qd3 {[%emt 0:02:17]} Qh3 {[%emt 0:02:49]} 31. Qe3 {[%emt 0:03:58]} h4 {[%emt 0:01:06]} 32. Rb1 {[%emt 0:00:56]} hxg3 {[%emt 0:04:38]} 33. hxg3 {[%emt 0:00:25]} Qh5 {[%emt 0:00:29]} 34. Kg2 {[%emt 0:01:31]} Ng5 {[%emt 0:01:39]} 35. Rh1 {[%emt 0:01:14]} Qg6 {[%emt 0:00:05]} 36. Rb6 {[%emt 0:00:22]} Ne6 {[%emt 0:01:19]} 37. Rb4 {[%emt 0:00:49]} Ng5 {[%emt 0:00:41]} 38. Rbh4 {[%emt 0:00:53]} Qc6+ {[%emt 0:00:49]} 39. f3 {[%emt 0:04:14]} Qc2+ {[%emt 0:01:23]} 40. Qf2 {[%emt 0:00:09]} Qxf2+ {[%emt 0:00:07]} 41. Kxf2 {[%emt 0:30:03]} f6 {[%emt 0:30:24]} 42. Rh8+ {[%emt 0:00:14]} Kf7 {[%emt 0:00:02]} 43. Rxf8+ {[%emt 0:00:08]} Kxf8 {[%emt 0:00:05]} 44. exf6 {[%emt 0:01:35]} gxf6 {[%emt 0:00:04]} 45. Ra1 {[%emt 0:00:28]} Kg7 {[%emt 0:00:00]} 46. Ke3 {[%emt 0:00:00]} Kg6 {[%emt 0:00:00]} 47. Ra6 {[%emt 0:00:00]} Nf7 {[%emt 0:00:00]} 48. f4 {[%emt 0:00:00]} Nh6 {[%emt 0:00:00]} 49. Kf3 {[%emt 0:00:00]} Nf7 {[%emt 0:00:00]} 50. g4 {[%emt 0:00:00]} Kg7 {[%emt 0:00:00]} 51. Ke4 {[%emt 0:00:00]} Nh6 {[%emt 0:00:00]} 52. Ra7+ {[%emt 0:00:00]} 1-0

[Event "FIDE Womens World Cup 2021"]
[Site "Sochi"]
[Date "2021.07.16"]
[Round "2.2"]
[White "Batsiashvili, Nino"]
[Black "Tsolakidou, Stavroula"]
[Result "1-0"]
[ECO "A16"]
[WhiteElo "2487"]
[BlackElo "2389"]
[Annotator "ChessBase"]
[PlyCount "151"]
[EventDate "2021.07.12"]
[EventType "k.o."]
[EventCountry "RUS"]
[SourceTitle "playchess.com"]
[Source "ChessBase"]
[SourceQuality "1"]
[TimeControl "40/5400+30:1800+30"]

1. c4 {[%emt 0:00:03]} Nf6 {[%emt 0:00:11]} 2. Nc3 {[%emt 0:00:32]} c6 {[%emt 0:00:25]} 3. d4 {[%emt 0:00:29]} d5 {[%emt 0:00:05]} 4. e3 {[%emt 0:00:33]} e6 {[%emt 0:00:21]} 5. b3 {[%emt 0:01:28]} Bb4 {[%emt 0:08:07]} 6. Bb2 {[%emt 0:00:50]} Ne4 {[%emt 0:10:07]} 7. Qc2 {[%emt 0:00:56]} e5 {[%emt 0:02:07]} 8. a3 {[%emt 0:00:53]} Bxc3+ {[%emt 0:20:56]} 9. Bxc3 {[%emt 0:00:05]} Nxc3 {[%emt 0:00:55]} 10. Qxc3 {[%emt 0:00:05]} exd4 {[%emt 0:02:47]} 11. Qxd4 {[%emt 0:01:00]} O-O {[%emt 0:00:14]} 12. cxd5 {[%emt 0:02:42]} cxd5 {[%emt 0:08:50]} 13. Nf3 {[%emt 0:00:24]} Nc6 {[%emt 0:00:35]} 14. Qb2 {[%emt 0:00:30]} Bg4 {[%emt 0:08:35]} 15. Be2 {[%emt 0:01:04]} Qb6 {[%emt 0:00:15]} 16. O-O {[%emt 0:23:59]} Rad8 {[%emt 0:03:57]} 17. Rad1 {[%emt 0:07:57]} Rfe8 {[%emt 0:02:09]} 18. b4 {[%emt 0:03:18]} h6 {[%emt 0:13:48]} 19. Rd2 {[%emt 0:07:10]} Ne7 {[%emt 0:04:17]} 20. Rfd1 {[%emt 0:08:13]} Rc8 {[%emt 0:00:14]} 21. Nd4 {[%emt 0:02:21]} Bd7 {[%emt 0:03:27]} 22. b5 {[%emt 0:05:36]} Qc5 {[%emt 0:02:07]} 23. Qb4 {[%emt 0:04:57]} Qxb4 {[%emt 0:01:07]} 24. axb4 {[%emt 0:00:01]} Rc3 {[%emt 0:01:36]} 25. Ra1 {[%emt 0:01:47]} Nc8 {[%emt 0:02:02]} 26. h3 {[%emt 0:01:34]} Kf8 {[%emt 0:01:25]} 27. Bf3 {[%emt 0:03:54]} Re5 {[%emt 0:00:04]} 28. Ne2 {[%emt 0:05:38]} Rc7 {[%emt 0:00:02]} 29. Nd4 {[%emt 0:01:39]} Rc4 {[%emt 0:00:17]} 30. Rb2 {[%emt 0:00:05]} g6 {[%emt 0:00:32]} 31. Be2 {[%emt 0:02:40]} Rc7 {[%emt 0:00:03]} 32. Rd2 {[%emt 0:01:14]} Re4 {[%emt 0:01:18]} 33. g4 {[%emt 0:00:48]} Rc3 {[%emt 0:00:58]} 34. Bf1 {[%emt 0:00:20]} Rc7 {[%emt 0:01:31]} 35. Bd3 {[%emt 0:03:12]} Re7 {[%emt 0:00:31]} 36. Be2 {[%emt 0:01:47]} Re4 {[%emt 0:00:24]} 37. Bf1 {[%emt 0:00:42]} Re5 {[%emt 0:00:50]} 38. Kh2 {[%emt 0:02:48]} Kg7 {[%emt 0:00:28]} 39. Kg3 {[%emt 0:01:04]} Kf8 {[%emt 0:00:29]} 40. Kh2 {[%emt 0:00:28]} Kg7 {[%emt 0:00:28]} 41. Rdd1 {[%emt 0:33:57]} Be8 {[%emt 0:05:42]} 42. Rdc1 {[%emt 0:00:00]} Ree7 {[%emt 0:03:03]} 43. Rc5 {[%emt 0:00:00]} Rxc5 {[%emt 0:07:18]} 44. bxc5 {[%emt 0:00:00]} Rc7 {[%emt 0:00:06]} 45. Nb3 {[%emt 0:00:00]} Bd7 {[%emt 0:01:18]} 46. Kg3 {[%emt 0:00:00]} Kf6 {[%emt 0:01:11]} 47. h4 {[%emt 0:00:00]} Be6 {[%emt 0:02:26]} 48. Rc1 {[%emt 0:00:00]} Bd7 {[%emt 0:01:31]} 49. Bd3 {[%emt 0:00:00]} Ne7 {[%emt 0:02:47]} 50. Ra1 {[%emt 0:00:00]} Nc8 {[%emt 0:00:19]} 51. f4 {[%emt 0:00:00]} Be6 {[%emt 0:03:39]} 52. Rc1 {[%emt 0:00:00]} Bd7 {[%emt 0:00:12]} 53. Rc2 {[%emt 0:00:00]} Ne7 {[%emt 0:00:53]} 54. Ra2 {[%emt 0:00:45]} Nc8 {[%emt 0:00:24]} 55. Rh2 {[%emt 0:00:18]} a6 {[%emt 0:03:45]} 56. b6 {[%emt 0:04:40]} Nxb6 {[%emt 0:00:08]} 57. cxb6 {[%emt 0:00:02]} Rc3 {[%emt 0:00:05]} 58. Rb2 {[%emt 0:01:48]} Rxd3 {[%emt 0:03:01]} 59. Nc5 {[%emt 0:00:01]} Rxe3+ {[%emt 0:00:17]} 60. Kf2 {[%emt 0:00:02]} Re7 {[%emt 0:01:02]} 61. Nxb7 {[%emt 0:00:20]} Bc6 {[%emt 0:00:23]} 62. Nc5 {[%emt 0:01:42]} Bb7 {[%emt 0:02:14]} 63. Re2 {[%emt 0:00:25]} Rxe2+ {[%emt 0:00:17]} 64. Kxe2 {[%emt 0:00:02]} Bc8 {[%emt 0:00:04]} 65. Ke3 {[%emt 0:02:04]} h5 {[%emt 0:00:17]} 66. gxh5 {[%emt 0:00:24]} gxh5 {[%emt 0:00:04]} 67. Kd4 {[%emt 0:00:05]} a5 {[%emt 0:00:57]} 68. Kxd5 {[%emt 0:00:19]} Ke7 {[%emt 0:01:58]} 69. b7 {[%emt 0:01:19]} Bxb7+ {[%emt 0:00:05]} 70. Nxb7 {[%emt 0:00:03]} a4 {[%emt 0:00:07]} 71. Nc5 {[%emt 0:00:17]} a3 {[%emt 0:00:04]} 72. Ke5 {[%emt 0:00:10]} a2 {[%emt 0:00:22]} 73. Nb3 {[%emt 0:00:01]} f6+ {[%emt 0:01:05]} 74. Kd5 {[%emt 0:00:26]} Kd7 {[%emt 0:00:11]} 75. f5 {[%emt 0:00:30]} Ke7 {[%emt 0:00:03]} 76. Ke4 1-0

[Event "FIDE Womens World Cup 2021"]
[Site "Sochi"]
[Date "2021.07.16"]
[Round "2.2"]
[White "Javakhishvili, Lela"]
[Black "Mammadova, Gulnar"]
[Result "1/2-1/2"]
[ECO "E92"]
[WhiteElo "2470"]
[BlackElo "2385"]
[Annotator "ChessBase"]
[PlyCount "115"]
[EventDate "2021.07.12"]
[EventType "k.o."]
[EventCountry "RUS"]
[SourceTitle "playchess.com"]
[Source "ChessBase"]
[SourceQuality "1"]
[TimeControl "40/5400+30:1800+30"]

1. d4 {[%emt 0:00:04]} Nf6 {[%emt 0:00:10]} 2. c4 {[%emt 0:00:08]} g6 {[%emt 0:00:06]} 3. Nc3 {[%emt 0:00:24]} Bg7 {[%emt 0:00:06]} 4. e4 {[%emt 0:00:16]} d6 {[%emt 0:00:09]} 5. Nf3 {[%emt 0:00:11]} O-O {[%emt 0:00:24]} 6. Be2 {[%emt 0:00:10]} e5 {[%emt 0:00:36]} 7. Be3 {[%emt 0:00:15]} Ng4 {[%emt 0:01:36]} 8. Bg5 {[%emt 0:00:09]} f6 {[%emt 0:00:38]} 9. Bc1 {[%emt 0:00:33]} Nc6 {[%emt 0:03:47]} 10. h3 {[%emt 0:09:07]} exd4 {[%emt 0:01:58]} 11. Nxd4 {[%emt 0:00:05]} Nge5 {[%emt 0:00:11]} 12. Be3 {[%emt 0:00:36]} Nxd4 {[%emt 0:15:00]} 13. Qxd4 {[%emt 0:00:09]} Be6 {[%emt 0:02:16]} 14. b3 {[%emt 0:22:06]} f5 {[%emt 0:07:14]} 15. Qd2 {[%emt 0:00:09]} fxe4 {[%emt 0:05:56]} 16. Rc1 {[%emt 0:15:49]} Bd7 {[%emt 0:15:46]} 17. Qd5+ {[%emt 0:03:27]} Kh8 {[%emt 0:00:34]} 18. Qxe4 {[%emt 0:02:21]} b6 {[%emt 0:04:18]} 19. O-O {[%emt 0:03:12]} Bf5 {[%emt 0:01:58]} 20. Qd5 {[%emt 0:02:02]} Qd7 {[%emt 0:00:51]} 21. f4 {[%emt 0:04:30]} Nc6 {[%emt 0:01:52]} 22. Qd2 {[%emt 0:05:03]} Rae8 {[%emt 0:02:34]} 23. Bf2 {[%emt 0:00:11]} a5 {[%emt 0:02:19]} 24. Bf3 {[%emt 0:02:56]} Nb4 {[%emt 0:02:27]} 25. g4 {[%emt 0:01:20]} Be6 {[%emt 0:00:35]} 26. Nd5 {[%emt 0:06:46]} Na6 {[%emt 0:02:40]} 27. Bg2 {[%emt 0:07:04]} Nc5 {[%emt 0:04:35]} 28. Nc3 {[%emt 0:00:09]} h5 {[%emt 0:05:16]} 29. f5 {[%emt 0:04:46]} gxf5 {[%emt 0:00:07]} 30. gxh5 {[%emt 0:02:16]} f4 {[%emt 0:00:34]} 31. Bd4 {[%emt 0:00:54]} Bxd4+ {[%emt 0:05:36]} 32. Qxd4+ {[%emt 0:00:02]} Qg7 {[%emt 0:00:07]} 33. Rcd1 {[%emt 0:00:53]} Rf6 {[%emt 0:03:11]} 34. Kh1 {[%emt 0:02:54]} Rg8 {[%emt 0:00:56]} 35. Rg1 {[%emt 0:03:10]} f3 {[%emt 0:02:17]} 36. Bxf3 {[%emt 0:02:37]} Rxf3 {[%emt 0:00:07]} 37. Rxg7 {[%emt 0:00:06]} Rxh3+ {[%emt 0:02:37]} 38. Kg2 {[%emt 0:00:07]} Rxg7+ {[%emt 0:00:03]} 39. Kf2 {[%emt 0:01:15]} Rh2+ {[%emt 0:00:31]} 40. Ke3 {[%emt 0:01:09]} Kg8 {[%emt 0:02:36]} 41. Rf1 {[%emt 0:05:37]} Rxh5 {[%emt 0:09:44]} 42. Qf6 {[%emt 0:04:59]} Kh7 {[%emt 0:01:52]} 43. Kd2 {[%emt 0:04:38]} Rh2+ {[%emt 0:07:00]} 44. Kc1 {[%emt 0:00:53]} Nd3+ {[%emt 0:03:23]} 45. Kb1 {[%emt 0:02:18]} Rf7 {[%emt 0:00:10]} 46. Qxf7+ {[%emt 0:00:11]} Bxf7 {[%emt 0:00:01]} 47. Rxf7+ {[%emt 0:00:05]} Kg6 {[%emt 0:01:57]} 48. Rf1 {[%emt 0:01:09]} Nb4 {[%emt 0:02:54]} 49. Nb5 {[%emt 0:04:29]} c6 {[%emt 0:03:34]} 50. Nxd6 {[%emt 0:00:25]} Nxa2 {[%emt 0:00:29]} 51. Rf3 {[%emt 0:01:08]} Nb4 {[%emt 0:00:51]} 52. Nc8 {[%emt 0:00:55]} b5 {[%emt 0:00:29]} 53. cxb5 {[%emt 0:00:15]} cxb5 {[%emt 0:00:02]} 54. Nd6 {[%emt 0:00:47]} Rh5 {[%emt 0:01:42]} 55. Nb7 {[%emt 0:01:32]} a4 {[%emt 0:00:35]} 56. bxa4 {[%emt 0:00:26]} bxa4 {[%emt 0:00:02]} 57. Nd6 {[%emt 0:00:48]} Rh2 {[%emt 0:01:01]} 58. Nc4 {[%emt 0:00:45]} 1/2-1/2